bitfinex-derivatives/quotes_SOLF0:USTF0_20251018
["timestamp","ask_amount","ask_price","bid_price","bid_amount"]
[1760777711209,2.6,185.91,185.87,1.83379894]
[1760777711509,2.6,185.9,185.86,2.82]
[1760777716513,2.6,185.9,185.87,2.82]
[1760777717312,1.83379894,185.91,185.85,4.8409]
[1760777717313,4.43379894,185.91,185.85,7.6609]
[1760777717513,2.6,185.89,185.85,7.6609]
[1760777718114,2.6,185.89,185.85,4.8409]
[1760777718320,2.6,185.89,185.86,2.82]
[1760777719414,2.6,185.89,185.84,44.92]
[1760777719415,9.82292003,185.95,185.87,4.8406]
[1760777719621,14.94959848,185.94,185.88,2.82]
[1760777719814,2.6,185.92,185.88,2.82]
[1760777720019,4.12719752,185.91,185.88,2.82]
[1760777720215,2.6,185.92,185.89,1.83379894]
[1760777720718,2.6,185.92,185.87,7.6606]
[1760777720719,2.6,185.92,185.88,2.82]
[1760777723322,1.83379894,185.93,185.88,2.82]
[1760777723522,2.6,185.92,185.88,2.82]
[1760777723924,2.6,185.92,185.86,62.0]
[1760777724125,2.6,185.92,185.85,19.361]
[1760777725219,1.83379894,185.91,185.85,4.841]
[1760777725923,2.6,185.9,185.84,2.82]
[1760777727125,2.6,185.9,185.84,7.6613]
[1760777727621,9.27299894,185.93,185.86,2.82]
[1760777728920,1.83379894,185.91,185.86,2.82]
[1760777729119,2.6,185.9,185.86,2.82]
[1760777729623,4.8394,185.92,185.86,2.82]
[1760777730221,6.73463518,185.91,185.89,1.83379894]
[1760777730426,2.6,185.91,185.89,1.83379894]
[1760777732121,2.6,185.93,185.89,1.83379894]
[1760777732427,13.1905057,185.92,185.9,2.82]
[1760777732725,2.6,185.93,185.9,2.82]
[1760777732925,4.73474379,185.92,185.9,2.82]
[1760777733228,2.6,185.92,185.88,7.6602]
[1760777733525,2.6,185.92,185.89,2.82]
[1760777735732,2.6,185.92,185.88,4.8402]
[1760777735733,4.8386,185.95,185.88,7.6602]
[1760777736027,15.80040878,185.94,185.9,2.82]
[1760777736226,8.87821259,185.93,185.9,2.82]
[1760777736421,9.82252003,185.97,185.9,2.82]
[1760777736627,15.7997148,185.96,185.9,2.82]
[1760777736829,15.7997148,185.95,185.89,4.65379894]
[1760777737029,13.10715486,185.94,185.89,1.83379894]
[1760777737330,13.10740595,185.93,185.9,2.82]
[1760777737530,2.6,185.94,185.9,2.82]
[1760777737727,13.10726875,185.93,185.9,2.82]
[1760777737927,2.6,185.95,185.88,4.8402]
[1760777738126,13.10688264,185.94,185.88,4.8402]
[1760777738328,15.70688264,185.93,185.89,2.82]
[1760777738529,4.7361043,185.92,185.9,2.82]
[1760777738729,2.6,185.93,185.9,2.82]
[1760777738934,4.73621556,185.92,185.86,4.8407]
[1760777739135,2.6,185.93,185.87,2.82]
[1760777739427,2.6,185.93,185.86,4.8407]
[1760777739428,7.33625621,185.92,185.86,4.8407]
[1760777739634,2.6,185.92,185.86,4.8407]
[1760777739931,2.6,185.92,185.88,2.82]
[1760777740235,2.6,185.92,185.89,2.82]
[1760777740532,7.4386,185.95,185.88,5.68217391]
[1760777740833,13.11058847,185.94,185.88,5.68217391]
[1760777741033,15.89058847,185.93,185.89,2.63]
[1760777741228,4.73761477,185.92,185.89,2.63]
[1760777741435,2.78,185.93,185.86,50.27217391]
[1760777741635,4.73913612,185.92,185.86,50.27217391]
[1760777741832,2.78,185.93,185.86,50.27217391]
[1760777742134,4.73913738,185.92,185.86,47.41]
[1760777742337,4.74129517,185.91,185.86,44.78]
[1760777742635,2.78,185.93,185.87,2.63]
[1760777742837,4.74129517,185.92,185.87,2.63]
[1760777743026,4.74129517,185.91,185.86,49.6206]
[1760777743231,7.6189,185.94,185.87,2.63]
[1760777743432,13.03390288,185.93,185.87,2.63]
[1760777743627,8.79600507,185.92,185.87,2.63]
[1760777743833,8.79600507,185.92,185.86,49.6206]
[1760777743834,4.74217291,185.91,185.86,49.6206]
[1760777744036,7.6189,185.94,185.87,2.63]
[1760777744238,13.03585939,185.93,185.87,7.4704]
[1760777744436,8.79734203,185.92,185.88,2.63]
[1760777744639,4.74286567,185.91,185.88,2.63]
[1760777744841,7.6189,185.94,185.87,7.4704]
[1760777745038,13.03983443,185.93,185.87,7.4704]
[1760777745237,8.80001217,185.92,185.88,2.63]
[1760777745437,4.74432585,185.91,185.87,4.8404]
[1760777745638,7.6189,185.94,185.88,2.63]
[1760777745835,15.82057788,185.93,185.87,4.8404]
[1760777746035,8.80051251,185.92,185.89,2.63]
[1760777746235,8.80051251,185.92,185.85,7.4709]
[1760777746236,4.74459789,185.91,185.85,7.4709]
[1760777746437,2.78,185.89,185.85,7.4709]
[1760777746837,2.78,185.89,185.86,2.62]
[1760777748537,2.8,185.91,185.85,4.8409]
[1760777748745,13.03912452,185.9,185.85,4.8409]
[1760777748940,2.8,185.88,185.85,4.8409]
[1760777749743,2.8,185.88,185.85,7.4609]
[1760777751338,4.8395,185.92,185.85,4.8409]
[1760777751645,2.8,185.9,185.87,2.62]
[1760777751839,4.8389,185.94,185.85,4.8409]
[1760777752044,2.8,185.92,185.85,4.8409]
[1760777752343,13.04625173,185.91,185.87,2.62]
[1760777752543,7.54678636,185.9,185.87,2.62]
[1760777752743,2.8,185.9,185.87,2.62]
[1760777752945,2.8,185.93,185.86,2.62]
[1760777753141,13.04936642,185.92,185.86,2.62]
[1760777753341,15.84936642,185.91,185.87,2.62]
[1760777753545,4.74791859,185.9,185.87,2.62]
[1760777753743,4.74791859,185.89,185.87,2.62]
[1760777753940,2.8,185.91,185.87,2.62]
[1760777754148,4.80906887,185.9,185.87,2.62]
[1760777754448,4.80906887,185.89,185.87,2.62]
[1760777754648,2.8,185.91,185.87,2.62]
[1760777754847,4.80911999,185.9,185.87,2.62]
[1760777755047,4.80911999,185.89,185.87,2.62]
[1760777755244,4.8389,185.94,185.86,7.4607]
[1760777755449,13.11144749,185.93,185.86,2.62]
[1760777755751,2.8,185.97,185.89,2.62]
[1760777755942,13.11295425,185.96,185.9,44.76]
[1760777756140,13.11295425,185.95,185.89,44.78]
[1760777756346,4.80963485,185.94,185.9,2.86217391]
[1760777756651,2.8,185.98,185.91,2.62]
[1760777756852,2.8,185.96,185.92,7.4591]
[1760777757049,4.80983532,185.95,185.92,7.4591]
[1760777757249,2.8,185.96,185.92,7.4591]
[1760777757452,4.80787821,185.95,185.92,7.4591]
[1760777757753,2.8,185.96,185.92,7.4591]
[1760777757951,4.80776456,185.95,185.92,7.4591]
[1760777758149,2.8,185.96,185.92,7.4591]
[1760777758344,4.80613063,185.95,185.92,7.4591]
[1760777758545,2.8,185.96,185.92,69.4591]
[1760777758751,4.80613063,185.95,185.92,69.4591]
[1760777759052,2.8,185.96,185.92,69.4591]
[1760777760253,2.8,185.96,185.92,66.8391]
[1760777760457,2.8,185.96,185.93,2.62]
[1760777760847,2.8,186.01,185.94,7.4583]
[1760777761053,2.8,186.01,185.87,2.86217391]
[1760777761054,13.09730485,186.0,185.97,2.62]
[1760777761251,4.80524933,185.99,185.97,2.62]
[1760777761448,2.8,186.04,185.96,5.48217391]
[1760777761751,2.8,186.02,185.96,5.48217391]
[1760777761951,2.8,186.0,185.96,5.48217391]
[1760777762151,4.80244459,185.99,185.97,2.62]
[1760777762349,2.8,186.03,185.97,2.62]
[1760777762547,4.8356,186.05,185.96,2.86217391]
[1760777762548,8.84779693,186.02,185.96,2.86217391]
[1760777762851,2.8,186.06,186.0,2.62]
[1760777763050,8.84815601,186.05,185.99,2.86217391]
[1760777763245,4.79990191,186.04,186.02,2.86217391]
[1760777763450,4.8347,186.09,186.02,2.62]
[1760777763757,15.87189417,186.08,186.02,2.62]
[1760777763947,13.07189417,186.07,186.01,64.62]
[1760777764147,7.59533472,186.06,186.02,2.62]
[1760777764347,2.8,186.06,186.02,2.62]
[1760777764543,2.8,186.06,186.01,106.78]
[1760777764544,2.8,186.06,186.01,111.6164]
[1760777764751,7.02952636,186.1,186.02,2.62]
[1760777764952,13.0624337,186.09,186.02,47.38]
[1760777765256,4.79179669,186.08,186.02,52.2161]
[1760777765454,2.8,186.1,186.02,52.2161]
[1760777765651,4.7876362,186.09,186.02,47.38]
[1760777765855,2.8,186.1,186.04,7.4556]
[1760777767754,2.82,186.13,186.02,44.76]
[1760777767953,2.82,186.11,186.02,44.76]
[1760777768148,4.77716665,186.12,186.01,64.8]
[1760777768149,2.82,186.12,186.01,64.8]
[1760777768355,2.82,186.1,186.02,44.76]
[1760777769359,2.82,186.05,185.97,49.5975]
[1760777769556,2.82,186.05,185.98,44.76]
[1760777769960,4.8353,186.06,185.98,44.76]
[1760777770258,2.82,186.05,185.98,44.76]
[1760777771059,2.82,186.05,185.98,47.62217391]
[1760777771261,2.82,186.05,185.99,2.82]
[1760777775463,4.8348,186.08,185.99,2.82]
[1760777775664,7.5748,186.08,185.99,2.82]
[1760777776966,7.5748,186.08,186.0,4.8368]
[1760777777266,7.5748,186.08,186.01,2.82]
[1760777780662,2.74,186.08,186.01,7.6564]
[1760777780967,2.74,186.08,186.02,2.82]
[1760777781870,4.8343,186.1,186.02,2.82]
[1760777782068,4.8343,186.1,186.02,7.6562]
[1760777783570,2.74,186.09,186.02,7.6562]
[1760777785472,4.8338,186.12,186.05,2.82]
[1760777785666,2.74,186.11,186.05,2.82]
[1760777786272,2.74,186.11,186.04,47.56217391]
[1760777786273,2.74,186.11,186.07,2.86217391]
[1760777786462,2.74,186.11,186.07,5.68217391]
[1760777788669,2.74,186.11,186.08,2.82]
[1760777788866,4.8333,186.14,186.04,44.7]
[1760777789170,2.74,186.13,186.06,2.86217391]
[1760777789473,7.5736,186.13,186.06,2.86217391]
[1760777789973,7.5736,186.13,186.06,64.86217391]
[1760777790173,7.5736,186.13,186.06,2.86217391]
[1760777790375,4.8339,186.12,186.06,2.86217391]
[1760777790575,4.8339,186.12,186.05,2.82]
[1760777790576,2.74,186.11,186.05,2.82]
[1760777791868,7.5741,186.11,186.05,2.82]
[1760777792776,4.8335,186.13,186.07,2.82]
[1760777793172,2.74,186.14,186.07,2.82]
[1760777793475,2.74,186.14,186.06,7.69727391]
[1760777793476,2.74,186.14,186.1,2.82]
[1760777793876,4.833,186.15,186.1,2.82]
[1760777793877,2.74,186.13,186.1,2.82]
[1760777795370,2.74,186.14,186.06,2.82]
[1760777795574,8.21269895,186.17,186.03,5.68217391]
[1760777795775,12.95563191,186.16,186.03,50.36217391]
[1760777795974,4.74293296,186.15,186.03,50.36217391]
[1760777796278,2.74,186.13,186.03,50.36217391]
[1760777796867,2.86217391,186.18,186.03,50.36217391]
[1760777797080,2.74,186.11,186.03,55.19807391]
[1760777797572,2.74,186.1,186.06,4.64866624]
[1760777798979,1.82866624,186.13,186.03,44.68]
[1760777799178,2.74,186.11,186.03,46.50866624]
[1760777799682,2.74,186.11,186.04,2.82]
[1760777800282,2.74,186.11,186.05,1.82866624]
[1760777800481,2.74,186.14,186.07,4.64866624]
[1760777800681,4.75713683,186.13,186.07,4.64866624]
[1760777800880,7.49713683,186.12,186.08,2.82]
[1760777801080,2.68,186.14,186.08,2.82]
[1760777801281,2.68,186.12,186.08,2.82]
[1760777801588,2.68,186.14,186.08,2.82]
[1760777801788,2.68,186.12,186.08,2.82]
[1760777801989,2.68,186.11,186.08,2.82]
[1760777806693,4.8338,186.12,186.08,2.82]
[1760777806893,4.76957898,186.11,186.08,2.82]
[1760777807093,7.5138,186.12,186.08,2.82]
[1760777807293,4.76958116,186.11,186.08,2.82]
[1760777807494,2.68,186.11,186.08,2.82]
[1760777807891,2.68,186.1,186.07,1.82866624]
[1760777808094,2.68,186.09,186.07,1.82866624]
[1760777808392,2.68,186.1,186.07,1.82866624]
[1760777808583,2.68,186.1,186.07,4.61866624]
[1760777808892,2.68,186.09,186.07,1.82866624]
[1760777809092,2.68,186.09,186.05,46.46866624]
[1760777809393,2.68,186.09,186.05,49.25866624]
[1760777809594,2.68,186.09,186.06,2.79]
[1760777813897,2.68,186.09,186.07,1.82866624]
[1760777820805,2.68,186.08,186.07,1.82866624]
[1760777821017,2.68,186.09,186.07,1.82866624]
[1760777822609,7.4296311,186.08,186.02,1.82866624]
[1760777822810,13.04507551,186.07,186.02,1.82866624]
[1760777823106,2.68,186.04,186.01,44.64]
[1760777823311,2.68,186.02,185.98,1.82866624]
[1760777823611,2.68,185.99,185.98,44.64]
[1760777823805,1.82866624,186.01,185.94,1.82866624]
[1760777824112,7.42708659,186.0,185.94,1.82866624]
[1760777824411,7.5169,186.0,185.94,1.82866624]
[1760777824610,2.68,185.99,185.96,1.82866624]
[1760777825008,2.68,186.02,185.98,4.61866624]
[1760777825309,2.68,186.02,186.0,1.82866624]
[1760777826208,2.68,186.01,185.98,1.82866624]
[1760777827111,2.83,186.01,185.98,1.82866624]
[1760777827313,2.83,186.0,185.98,1.82866624]
[1760777828915,7.6665,186.02,185.98,4.48866624]
[1760777829414,7.6665,186.02,186.01,1.82866624]
[1760777830415,12.00444428,186.02,185.99,1.82866624]
[1760777830619,2.83,186.01,185.99,1.82866624]
[1760777830912,2.83,186.0,185.99,1.82866624]
[1760777832914,7.81546991,186.08,185.99,47.54866624]
[1760777833114,11.90107815,186.07,186.05,1.82866624]
[1760777833417,7.17610038,186.06,186.05,1.82866624]
[1760777835023,7.17149089,186.06,186.05,1.82866624]
[1760777835219,4.33149089,186.06,186.05,1.82866624]
[1760777836624,7.17149089,186.06,186.05,1.82866624]
[1760777838018,4.95464711,186.1,186.05,1.82866624]
[1760777838019,2.84,186.12,186.06,2.62]
[1760777838221,2.84,186.1,186.09,1.82866624]
[1760777838420,7.17041203,186.1,186.09,1.82866624]
[1760777843627,11.9817148,186.1,186.09,1.82866624]
[1760777845531,2.84,186.09,186.07,1.82866624]
[1760777845832,4.33041203,186.08,186.07,1.82866624]
[1760777846030,7.17041203,186.08,186.07,1.82866624]
[1760777849532,2.84,186.07,186.05,1.82866624]
[1760777849838,2.84,186.06,186.05,1.82866624]
[1760777850041,9.15301692,186.06,186.03,1.82866624]
[1760777850239,2.84,186.09,186.01,1.82866624]
[1760777850439,9.1548344,186.08,186.03,1.82866624]
[1760777850639,4.95464711,186.1,186.03,1.82866624]
[1760777850640,2.84,186.06,186.03,1.82866624]
[1760777850939,2.84,186.04,186.03,1.82866624]
[1760777852947,2.84,186.04,186.01,1.82866624]
[1760777853348,2.84,186.03,186.01,1.82866624]
[1760777858452,4.8357,186.05,186.01,1.82866624]
[1760777858651,6.78331335,186.09,185.99,1.82866624]
[1760777858652,2.84,186.03,185.99,1.82866624]
[1760777858946,2.84,186.01,185.99,1.82866624]
[1760777859454,2.84,186.01,185.98,5.47903017]
[1760777859851,4.95464711,186.06,185.95,44.64]
[1760777860051,2.84,186.01,185.95,44.64]
[1760777860251,2.84,186.0,185.97,2.85903017]
[1760777860551,2.84,186.02,185.98,2.62]
[1760777862052,2.84,186.02,185.98,2.86]
[1760777866553,4.8362,186.03,185.98,2.86]
[1760777866855,7.08998003,186.02,185.98,2.86]
[1760777867054,2.75,186.02,185.98,2.86]
[1760777867955,2.75,186.02,185.97,2.85903017]
[1760777868156,2.75,186.02,185.98,2.86]
[1760777868651,2.75,186.02,185.97,2.85903017]
[1760777869946,2.75,186.02,185.98,2.86]
[1760777870657,2.75,186.02,185.97,2.85903017]
[1760777870857,4.10781393,186.07,185.98,2.86]
[1760777871158,13.42725332,186.06,185.99,2.85903017]
[1760777871351,2.85903017,186.1,185.99,2.85903017]
[1760777871352,9.17529585,186.05,185.99,2.85903017]
[1760777871655,9.17529585,186.04,185.99,2.85903017]
[1760777871855,4.34260653,186.03,185.99,2.85903017]
[1760777872054,4.8357,186.05,185.99,2.85903017]
[1760777872253,9.13944325,186.04,185.99,2.85903017]
[1760777872454,4.8357,186.05,185.99,2.85903017]
[1760777872659,9.13687776,186.04,185.99,2.85903017]
[1760777872852,4.30550954,186.03,185.99,2.85903017]
[1760777873054,4.8357,186.05,186.0,2.86]
[1760777873263,11.88687539,186.04,185.99,2.85903017]
[1760777873464,4.30550829,186.03,186.0,2.86]
[1760777873665,2.75,186.04,185.99,2.85903017]
[1760777873960,11.93488503,186.03,186.0,2.86]
[1760777874163,2.75,186.03,186.0,2.86]
[1760777875761,2.75,186.03,185.99,2.85903017]
[1760777875962,2.75,186.03,186.0,2.86]
[1760777877759,2.75,186.03,185.99,2.85903017]
[1760777878058,4.8359,186.04,185.99,2.85903017]
[1760777878265,9.18481294,186.03,185.99,2.85903017]
[1760777878466,2.75,186.02,185.99,5.71903017]
[1760777878768,2.75,186.03,185.99,5.71903017]
[1760777879068,9.18395637,186.02,185.99,5.71903017]
[1760777879262,2.75,186.03,185.99,5.71903017]
[1760777879463,2.75,186.01,185.99,5.71903017]
[1760777879963,2.75,186.01,185.99,2.85903017]
[1760777881465,4.8362,186.03,185.98,44.64]
[1760777881666,2.75,186.01,185.98,44.64]
[1760777881863,4.8362,186.03,185.98,44.64]
[1760777882064,2.75,186.01,185.98,44.64]
[1760777882264,2.75,186.01,185.98,47.5]
[1760777882465,2.75,186.01,185.99,2.86]
[1760777883166,4.8362,186.03,185.98,44.64]
[1760777883366,4.8362,186.03,185.98,47.5]
[1760777883367,2.75,186.01,185.98,47.5]
[1760777885268,2.74,185.99,185.95,2.64]
[1760777885470,2.74,186.06,185.95,2.64]
[1760777885671,2.74,186.04,185.95,2.64]
[1760777885970,4.8368,186.01,185.95,2.64]
[1760777886164,9.19684421,186.0,185.95,2.64]
[1760777886369,7.5768,186.01,185.95,2.64]
[1760777886566,11.9367505,186.0,185.96,2.64]
[1760777886766,2.74,185.99,185.96,2.64]
[1760777886967,2.74,185.99,185.95,44.64]
[1760777887170,2.74,185.99,185.96,2.64]
[1760777887770,2.74,186.06,185.96,5.49903017]
[1760777887974,2.74,186.04,185.97,2.64]
[1760777888174,2.74,186.02,185.97,2.64]
[1760777888471,2.74,186.0,185.97,2.64]
[1760777888974,9.18829219,185.99,185.95,44.64]
[1760777889268,2.74,185.98,185.95,2.64]
[1760777889467,4.8373,185.99,185.95,2.64]
[1760777889767,2.74,186.04,185.92,2.85903017]
[1760777889967,2.74,186.04,185.9,15.03204]
[1760777889968,2.74,186.01,185.91,2.64]
[1760777890172,2.74,185.99,185.91,2.64]
[1760777890475,16.18484739,185.98,185.91,5.49903017]
[1760777890668,13.44297148,185.97,185.91,5.49903017]
[1760777890868,9.18913859,185.96,185.92,2.64]
[1760777891070,2.74,185.98,185.92,2.81]
[1760777891361,11.87417167,185.97,185.92,2.81]
[1760777891562,9.18417167,185.96,185.92,44.64]
[1760777891765,2.69,185.97,185.92,44.64]
[1760777892066,9.18390616,185.96,185.91,47.49903017]
[1760777892367,2.69,185.97,185.92,44.64]
[1760777892573,9.18190078,185.96,185.93,2.81]
[1760777892767,2.69,185.97,185.92,44.64]
[1760777892970,9.18030454,185.96,185.93,2.81]
[1760777893170,2.69,185.97,185.91,2.85903017]
[1760777893474,9.17860679,185.96,185.92,44.64]
[1760777893674,2.69,185.97,185.92,44.64]
[1760777893970,9.17899972,185.96,185.92,44.64]
[1760777894269,4.8375,185.98,185.91,7.69803017]
[1760777894472,9.17886185,185.97,185.92,2.81]
[1760777894771,4.8375,185.98,185.91,7.69803017]
[1760777894972,9.17878156,185.97,185.93,2.81]
[1760777895175,4.8375,185.98,185.93,2.81]
[1760777895366,9.17714398,185.97,185.92,106.64]
[1760777895666,9.41618704,186.05,185.94,5.66903017]
[1760777895872,13.42851396,186.04,185.94,5.66903017]
[1760777896173,2.69,186.02,185.94,5.66903017]
[1760777896468,18.26511396,186.01,185.94,50.30903017]
[1760777896672,11.86805861,186.0,185.94,5.66903017]
[1760777896968,4.8366,186.01,185.93,2.85903017]
[1760777896969,9.17805861,185.99,185.93,2.85903017]
[1760777897270,2.69,186.0,185.94,47.45]
[1760777897467,9.17334082,185.99,185.94,44.64]
[1760777897669,7.5266,186.01,185.96,2.85903017]
[1760777897868,9.17335739,186.0,185.96,2.85903017]
[1760777898070,9.17335739,185.99,185.97,2.81]
[1760777898271,4.836,186.03,185.97,2.81]
[1760777898564,9.17570915,186.02,185.96,2.85903017]
[1760777898770,9.17570915,186.01,185.96,2.85903017]
[1760777898971,9.17570915,186.0,185.97,2.81]
[1760777899166,4.836,186.03,185.97,2.81]
[1760777899361,9.17609684,186.02,185.96,2.85903017]
[1760777899564,9.17609684,186.01,185.96,2.85903017]
[1760777899771,9.17609684,186.0,185.97,2.81]
[1760777899969,4.836,186.03,185.97,2.81]
[1760777900170,9.17613972,186.02,185.96,2.85903017]
[1760777900476,9.17613972,186.01,185.96,2.85903017]
[1760777900669,9.17837444,186.0,185.97,2.81]
[1760777900868,2.69,186.02,185.96,5.66903017]
[1760777901063,11.86839337,186.01,185.97,2.81]
[1760777901367,9.17839337,186.0,185.96,2.85903017]
[1760777901571,2.69,186.01,185.96,2.85903017]
[1760777901973,2.69,186.01,185.98,2.81]
[1760777902173,2.69,186.01,185.97,44.64]
[1760777902373,2.69,186.01,185.98,2.81]
[1760777904673,4.836,186.03,185.98,2.81]
[1760777904869,9.12340127,186.02,185.98,2.81]
[1760777905172,11.81340127,186.01,185.98,2.81]
[1760777905368,4.836,186.03,185.98,2.81]
[1760777905567,2.69,186.01,185.98,2.81]
[1760777905877,4.836,186.03,185.97,44.64]
[1760777905878,4.836,186.03,185.97,47.45]
[1760777906174,2.69,186.0,185.97,47.45]
[1760777906370,9.12516326,186.02,185.97,47.45]
[1760777906371,7.526,186.03,185.97,47.45]
[1760777906571,2.69,186.01,185.98,2.81]
[1760777906968,2.85903017,186.07,185.97,44.64]
[1760777907173,2.69,186.05,185.97,44.64]
[1760777907369,2.69,186.03,185.97,44.64]
[1760777907574,13.37958369,186.02,185.97,47.45]
[1760777907776,2.69,186.0,185.97,47.45]
[1760777907977,4.86013954,185.99,185.97,47.45]
[1760777908177,2.69,186.05,185.97,47.45]
[1760777908377,4.8363,186.02,185.97,47.45]
[1760777908577,2.69,186.0,185.97,47.45]
[1760777908775,4.85983485,185.99,185.97,47.45]
[1760777908968,2.69,185.99,185.97,47.45]
[1760777910782,2.69,185.99,185.97,2.81]
[1760777910981,2.69,186.01,185.95,2.81]
[1760777911283,9.12379567,186.0,185.95,2.81]
[1760777911579,4.85962261,185.99,185.97,2.81]
[1760777911772,2.69,186.0,185.97,2.81]
[1760777911976,4.85965697,185.99,185.97,2.81]
[1760777912173,2.69,186.0,185.97,2.81]
[1760777912371,4.85970961,185.99,185.97,2.81]
[1760777912573,2.69,186.0,185.97,2.81]
[1760777912774,4.85971131,185.99,185.97,2.81]
[1760777912982,2.69,186.0,185.97,2.81]
[1760777913173,4.85971361,185.99,185.97,2.81]
[1760777913380,2.69,186.0,185.97,2.81]
[1760777913581,4.85978115,185.99,185.97,2.81]
[1760777913887,2.69,186.0,185.97,2.81]
[1760777914076,4.8597765,185.99,185.97,2.81]
[1760777914277,2.69,186.0,185.97,2.81]
[1760777914473,4.85986567,185.99,185.97,2.81]
[1760777914679,2.69,186.0,185.97,2.81]
[1760777914881,4.85986631,185.99,185.97,2.81]
[1760777915084,2.69,186.0,185.97,2.81]
[1760777915382,4.85986631,185.99,185.97,2.81]
[1760777915584,4.8366,186.01,185.97,2.81]
[1760777915883,11.81442745,186.0,185.97,2.81]
[1760777916086,4.85996954,185.99,185.97,2.81]
[1760777916381,2.69,186.0,185.97,2.81]
[1760777916586,4.86027708,185.99,185.97,2.81]
[1760777916886,2.69,186.0,185.97,2.81]
[1760777917086,4.86027708,185.99,185.97,2.81]
[1760777917280,2.69,186.0,185.97,2.81]
[1760777917481,4.8606196,185.99,185.97,2.81]
[1760777917682,4.836,186.03,185.96,44.64]
[1760777917984,2.69,186.01,185.98,2.81]
[1760777918187,9.11111635,186.0,185.98,2.81]
[1760777918381,2.69,186.01,185.98,2.81]
[1760777918582,9.11241554,186.0,185.98,2.81]
[1760777918888,2.69,186.06,185.98,2.81]
[1760777919088,2.69,186.01,185.98,2.81]
[1760777919380,9.09843071,186.0,185.98,2.81]
[1760777919580,4.8613049,185.99,185.98,2.81]
[1760777920086,2.69,186.05,185.98,2.81]
[1760777920383,9.10075755,186.04,186.02,2.81]
[1760777920687,9.10075755,186.03,186.02,2.81]
[1760777921478,9.10075755,186.03,186.02,4.63936156]
[1760777924093,9.06893504,186.03,186.02,4.63936156]
[1760777925089,4.86238397,186.03,186.02,49.25936156]
[1760777925998,4.86238397,186.03,186.02,4.63936156]
[1760777926194,4.86238397,186.03,186.02,49.25936156]
[1760777927096,7.5147,186.08,186.03,2.81]
[1760777927291,4.20588435,186.07,186.04,44.62]
[1760777927595,6.88585449,186.06,186.05,1.82936156]
[1760777930700,4.8356,186.05,186.03,1.82936156]
[1760777930905,6.88585449,186.04,186.03,1.82936156]
[1760777931201,2.68,186.04,186.03,1.82936156]
[1760777932501,4.20030521,186.04,186.0,1.82936156]
[1760777932701,4.20006846,186.03,185.98,1.82936156]
[1760777932902,2.68,186.0,185.98,1.82936156]
[1760777933807,2.68,186.05,185.98,4.63936156]
[1760777934108,7.5164,186.02,186.0,1.82936156]
[1760777934303,2.68,186.01,186.0,1.82936156]
[1760777938105,6.88265486,186.01,186.0,1.82936156]
[1760777938909,2.68,185.99,185.98,1.82936156]
[1760777940904,2.68,185.98,185.95,2.81]
[1760777941210,2.68,185.98,185.97,1.82936156]
[1760777942110,4.8368,186.0,185.97,1.82936156]
[1760777942307,7.55911888,185.99,185.97,1.82936156]
[1760777942511,2.68,185.99,185.98,1.82936156]
[1760777942708,7.5591322,185.99,185.98,1.82936156]
[1760777944013,4.8791322,185.99,185.94,2.81]
[1760777944306,4.8368,186.0,185.98,1.82936156]